[Event "9e Open International de Porticcio"]
[Site "Porticcio, France"]
[Date "2024.06.30"]
[Round "2.3"]
[White "Kuru, Atilla"]
[Black "Hamdouchi, Hicham"]
[Result "1-0"]
[TimeControl "1h30+30s/move"]
[WhiteElo "2314"]
[BlackElo "2527"]

1. e4 {[%clk 01:28:07]} {[%emt 00:02:52]} e6 {[%clk 01:30:53]} {[%emt
00:00:07]} 2. d4 {[%clk 01:27:31]} {[%emt 00:01:07]} d5 {[%clk 01:31:16]}
{[%emt 00:00:07]} 3. e5 {[%clk 01:25:02]} {[%emt 00:02:59]} c5 {[%emt
00:00:09]} 4. c3 {[%clk 01:25:23]} {[%emt 00:00:09]} Qb6 {[%clk 01:29:43]}
{[%emt 00:02:24]} 5. Nf3 {[%clk 01:25:46]} {[%emt 00:00:07]} Bd7 {[%clk
01:30:10]} {[%emt 00:00:04]} 6. Bd3 {[%clk 01:22:13]} {[%emt 00:03:55]} cxd4
{[%clk 01:28:49]} {[%emt 00:01:58]} 7. cxd4 {[%clk 01:22:33]} {[%emt 00:00:10]}
Nc6 {[%clk 01:29:11]} {[%emt 00:00:09]} 8. O-O {[%clk 01:18:00]} {[%emt
00:05:02]} Nxd4 {[%clk 01:28:48]} {[%emt 00:00:53]} 9. Nbd2 {[%clk 01:18:27]}
{[%emt 00:00:03]} Nc6 {[%clk 01:26:45]} {[%emt 00:02:33]} 10. Nb3 {[%clk
01:18:00]} {[%emt 00:00:57]} Nge7 {[%clk 01:21:14]} {[%emt 00:06:01]} 11. Re1
{[%clk 00:49:29]} {[%emt 00:29:00]} Ng6 {[%clk 01:18:42]} {[%emt 00:03:02]} 12.
Bd2 {[%clk 00:41:43]} {[%emt 00:08:17]} Be7 {[%clk 01:14:38]} {[%emt 00:04:34]}
13. Rc1 {[%clk 00:40:22]} {[%emt 00:01:51]} O-O {[%clk 01:13:41]} {[%emt
00:01:27]} 14. h4 {[%clk 00:40:22]} {[%emt 00:00:30]} Rae8 {[%clk 01:06:19]}
{[%emt 00:07:51]} 15. h5 {[%clk 00:37:47]} {[%emt 00:03:07]} Nh4 {[%clk
01:02:47]} {[%emt 00:04:02]} 16. Nxh4 {[%clk 00:38:11]} {[%emt 00:00:05]} Bxh4
{[%clk 01:03:10]} {[%emt 00:00:07]} 17. Nc5 {[%clk 00:37:56]} {[%emt 00:00:46]}
Bc8 {[%clk 00:44:39]} {[%emt 00:19:01]} 18. Qg4 {[%clk 00:30:30]} {[%emt
00:07:56]} Qxb2 {[%clk 00:42:36]} {[%emt 00:02:33]} 19. h6 {[%clk 00:07:59]}
{[%emt 00:23:01]} g6 {[%clk 00:42:21]} {[%emt 00:00:44]} 20. Qxh4 {[%clk
00:08:15]} {[%emt 00:00:15]} Qxd2 {[%clk 00:42:09]} {[%emt 00:00:42]} 21. Rcd1
{[%clk 00:08:41]} {[%emt 00:00:04]} g5 {[%clk 00:41:26]} {[%emt 00:01:14]} 22.
Qh5 {[%emt 00:02:03]} 1-0

[Event "9e Open International de Porticcio"]
[Site "Porticcio, France"]
[Date "2024.06.30"]
[Round "2.4"]
[White "Clarke, Brandon G I"]
[Black "Priansh Das"]
[Result "1/2-1/2"]
[TimeControl "1h30+30s/move"]
[WhiteElo "2498"]
[BlackElo "2263"]

1. c3 {[%clk 01:30:57]} {[%emt 00:00:02]} Nf6 {[%clk 01:30:26]} {[%emt
00:00:35]} 2. d3 {[%clk 01:31:16]} {[%emt 00:00:11]} g6 {[%clk 01:30:50]}
{[%emt 00:00:06]} 3. g3 {[%clk 01:30:06]} {[%emt 00:01:39]} Bg7 {[%clk
01:30:15]} {[%emt 00:01:05]} 4. Bg2 {[%clk 01:30:33]} {[%emt 00:00:03]} O-O
{[%clk 01:30:27]} {[%emt 00:00:19]} 5. f4 {[%clk 01:29:43]} {[%emt 00:01:20]}
d5 {[%clk 01:30:28]} {[%emt 00:00:29]} 6. Nf3 {[%clk 01:29:58]} {[%emt
00:00:14]} c5 {[%clk 01:27:33]} {[%emt 00:03:26]} 7. O-O {[%clk 01:30:16]}
{[%emt 00:00:11]} Nc6 {[%clk 01:27:56]} {[%emt 00:00:07]} 8. Na3 {[%clk
01:26:33]} {[%emt 00:04:14]} d4 {[%clk 01:24:21]} {[%emt 00:04:05]} 9. e4
{[%clk 01:21:46]} {[%emt 00:05:17]} dxe3 {[%clk 01:17:48]} {[%emt 00:07:03]} 10.
Bxe3 {[%clk 01:22:09]} {[%emt 00:00:06]} Bf5 {[%clk 01:10:04]} {[%emt
00:08:14]} 11. Bxc5 {[%clk 01:18:21]} {[%emt 00:04:18]} Bxd3 {[%clk 01:09:00]}
{[%emt 00:01:34]} 12. Re1 {[%clk 01:17:49]} {[%emt 00:01:03]} Be4 {[%clk
01:00:52]} {[%emt 00:08:38]} 13. Qxd8 {[%clk 01:12:45]} {[%emt 00:05:34]} Rfxd8
{[%clk 00:56:42]} {[%emt 00:04:39]} 14. Nd4 {[%clk 01:09:08]} {[%emt 00:04:07]}
Bxg2 {[%clk 00:55:27]} {[%emt 00:01:46]} 15. Kxg2 {[%clk 01:09:35]} {[%emt
00:00:03]} Nxd4 {[%clk 00:51:22]} {[%emt 00:04:35]} 16. Bxd4 {[%clk 01:09:19]}
{[%emt 00:00:46]} Ng4 {[%clk 00:51:24]} {[%emt 00:00:28]} 17. Nc2 {[%clk
00:49:36]} {[%emt 00:20:12]} e5 {[%clk 00:50:50]} {[%emt 00:01:05]} 18. fxe5
{[%clk 00:49:27]} {[%emt 00:00:39]} Nxe5 {[%clk 00:51:02]} {[%emt 00:00:18]} 19.
Re2 {[%clk 00:48:51]} {[%emt 00:01:06]} Nc6 {[%clk 00:49:20]} {[%emt 00:02:12]}
20. Bxg7 {[%clk 00:37:41]} {[%emt 00:11:40]} Kxg7 {[%clk 00:49:10]} {[%emt
00:00:40]} 21. Rf1 {[%clk 00:36:21]} {[%emt 00:01:50]} Rd7 {[%clk 00:48:43]}
{[%emt 00:00:58]} 22. g4 {[%clk 00:34:34]} {[%emt 00:02:16]} h6 {[%clk
00:48:37]} {[%emt 00:00:36]} 23. Rf4 {[%clk 00:33:54]} {[%emt 00:01:10]} Rad8
{[%clk 00:48:49]} {[%emt 00:00:18]} 24. h3 {[%emt 00:01:27]} Rd2 {[%clk
00:48:34]} {[%emt 00:00:22]} 25. Rff2 {[%clk 00:29:31]} {[%emt 00:04:19]} Rxe2
{[%clk 00:48:21]} {[%emt 00:00:43]} 26. Rxe2 {[%clk 00:29:59]} {[%emt
00:00:02]} f5 {[%clk 00:48:13]} {[%emt 00:00:39]} 27. gxf5 {[%clk 00:29:27]}
{[%emt 00:01:02]} gxf5 {[%clk 00:48:28]} {[%emt 00:00:15]} 28. Rf2 {[%clk
00:28:48]} {[%emt 00:01:08]} Kg6 {[%clk 00:45:11]} {[%emt 00:03:48]} 29. Ne3
{[%clk 00:28:45]} {[%emt 00:00:33]} Ne7 {[%clk 00:45:14]} {[%emt 00:00:27]} 30.
Kf3 {[%clk 00:28:08]} {[%emt 00:01:07]} Kf6 {[%clk 00:44:11]} {[%emt 00:01:32]}
31. Ke2 {[%clk 00:24:15]} {[%emt 00:04:24]} Ke5 {[%clk 00:42:45]} {[%emt
00:01:56]} 32. Rg2 {[%clk 00:21:55]} {[%emt 00:02:51]} Kf6 {[%clk 00:41:55]}
{[%emt 00:01:20]} 33. Rf2 {[%clk 00:20:57]} {[%emt 00:01:27]} Ke5 {[%clk
00:41:41]} {[%emt 00:00:44]} 34. Rg2 {[%clk 00:20:57]} {[%emt 00:00:31]} Kf6
{[%clk 00:40:34]} {[%emt 00:01:37]} 35. Rf2 {[%clk 00:20:05]} {[%emt 00:01:21]}
Ke5 {[%clk 00:40:55]} {[%emt 00:00:10]} 1/2-1/2

[Event "9e Open International de Porticcio"]
[Site "Porticcio, France"]
[Date "2024.06.30"]
[Round "2.5"]
[White "Klek, Hanna Marie"]
[Black "Bailet, Pierre"]
[Result "0-1"]
[TimeControl "1h30+30s/move"]
[WhiteElo "2300"]
[BlackElo "2491"]

1. e4 {[%clk 01:30:56]} {[%emt 00:00:03]} e5 {[%clk 01:29:11]} {[%emt
00:01:49]} 2. Nf3 {[%clk 01:31:19]} {[%emt 00:00:07]} Nc6 {[%clk 01:29:24]}
{[%emt 00:00:17]} 3. Bc4 {[%clk 01:31:40]} {[%emt 00:00:09]} Nf6 {[%clk
01:29:02]} {[%emt 00:00:51]} 4. d3 {[%clk 01:32:03]} {[%emt 00:00:08]} Bc5
{[%clk 01:28:57]} {[%emt 00:00:34]} 5. a4 {[%clk 01:32:19]} {[%emt 00:00:15]}
O-O {[%clk 01:28:20]} {[%emt 00:01:05]} 6. O-O {[%clk 01:32:09]} {[%emt
00:00:41]} h6 {[%clk 01:24:20]} {[%emt 00:04:29]} 7. a5 {[%clk 01:28:23]}
{[%emt 00:04:17]} a6 {[%clk 01:23:29]} {[%emt 00:01:21]} 8. c3 {[%clk
01:28:26]} {[%emt 00:00:27]} d6 {[%clk 01:19:12]} {[%emt 00:04:47]} 9. Be3
{[%clk 01:27:46]} {[%emt 00:01:10]} Bxe3 {[%clk 01:17:07]} {[%emt 00:02:35]} 10.
fxe3 {[%clk 01:28:10]} {[%emt 00:00:06]} Be6 {[%clk 01:17:17]} {[%emt
00:00:19]} 11. Nbd2 {[%clk 01:25:12]} {[%emt 00:03:28]} Bxc4 {[%clk 01:06:35]}
{[%emt 00:11:12]} 12. Nxc4 {[%clk 01:25:35]} {[%emt 00:00:07]} d5 {[%clk
01:05:00]} {[%emt 00:02:04]} 13. Ncxe5 {[%clk 01:18:58]} {[%emt 00:07:07]} dxe4
{[%clk 01:03:12]} {[%emt 00:02:18]} 14. Nxc6 {[%clk 01:18:56]} {[%emt
00:00:33]} bxc6 {[%clk 01:03:14]} {[%emt 00:00:27]} 15. dxe4 {[%clk 01:16:59]}
{[%emt 00:02:28]} Nxe4 {[%clk 01:00:35]} {[%emt 00:03:09]} 16. Qd4 {[%clk
01:04:30]} {[%emt 00:12:59]} Qd5 {[%clk 00:46:56]} {[%emt 00:14:08]} 17. Rad1
{[%clk 00:59:41]} {[%emt 00:05:20]} Rab8 {[%clk 00:42:32]} {[%emt 00:04:54]} 18.
Qa4 {[%clk 00:53:39]} {[%emt 00:06:32]} Qe6 {[%clk 00:35:17]} {[%emt 00:07:44]}
19. Nd4 {[%clk 00:52:11]} {[%emt 00:01:59]} Qe8 {[%clk 00:35:14]} {[%emt
00:00:32]} 20. Qxc6 {[%clk 00:39:54]} {[%emt 00:12:47]} Qxc6 {[%clk 00:28:33]}
{[%emt 00:07:10]} 21. Nxc6 {[%clk 00:40:20]} {[%emt 00:00:05]} Rxb2 {[%clk
00:28:56]} {[%emt 00:00:07]} 22. Rd7 {[%clk 00:29:15]} {[%emt 00:11:35]} Nxc3
{[%clk 00:22:56]} {[%emt 00:06:30]} 23. Ne7+ {[%clk 00:27:40]} {[%emt
00:02:06]} Kh7 {[%clk 00:23:05]} {[%emt 00:00:20]} 24. Rxc7 {[%clk 00:27:59]}
{[%emt 00:00:12]} Ne4 {[%clk 00:20:29]} {[%emt 00:03:05]} 25. Nf5 {[%clk
00:14:09]} {[%emt 00:14:20]} Rb5 {[%clk 00:16:14]} {[%emt 00:04:45]} 26. Re7
{[%clk 00:11:35]} {[%emt 00:03:04]} Nd2 {[%clk 00:13:39]} {[%emt 00:03:05]} 27.
Rf4 {[%clk 00:11:39]} {[%emt 00:00:27]} g5 {[%clk 00:10:54]} {[%emt 00:03:14]}
28. Rd4 {[%clk 00:10:20]} {[%emt 00:01:49]} Nb3 {[%clk 00:08:46]} {[%emt
00:02:37]} 29. Nd6 {[%clk 00:08:11]} {[%emt 00:02:41]} Nxd4 {[%clk 00:08:29]}
{[%emt 00:00:46]} 30. exd4 {[%clk 00:08:35]} {[%emt 00:00:06]} Rxa5 {[%clk
00:07:38]} {[%emt 00:01:20]} 31. h3 {[%clk 00:08:36]} {[%emt 00:00:29]} Kg6
{[%clk 00:07:24]} {[%emt 00:00:44]} 0-1

[Event "9e Open International de Porticcio"]
[Site "Porticcio, France"]
[Date "2024.06.30"]
[Round "2.7"]
[White "Batsiashvili, Nino"]
[Black "Ribeiro, Gustavo"]
[Result "1-0"]
[TimeControl "1h30+30s/move"]
[WhiteElo "2450"]
[BlackElo "2246"]

1. d4 {[%clk 01:30:58]} {[%emt 00:00:01]} Nf6 {[%clk 01:30:55]} {[%emt
00:00:05]} 2. c4 {[%clk 01:31:25]} {[%emt 00:00:03]} e6 {[%clk 01:31:22]}
{[%emt 00:00:03]} 3. Nc3 {[%clk 01:31:51]} {[%emt 00:00:04]} Bb4 {[%clk
01:31:48]} {[%emt 00:00:04]} 4. e3 {[%clk 01:32:17]} {[%emt 00:00:04]} O-O
{[%clk 01:31:41]} {[%emt 00:00:37]} 5. Bd3 {[%clk 01:32:30]} {[%emt 00:00:16]}
c5 {[%clk 01:31:58]} {[%emt 00:00:14]} 6. Nge2 {[%clk 01:32:23]} {[%emt
00:00:37]} d5 {[%clk 01:31:54]} {[%emt 00:00:34]} 7. cxd5 {[%clk 01:31:44]}
{[%emt 00:01:09]} Nxd5 {[%clk 01:31:28]} {[%emt 00:00:56]} 8. O-O {[%clk
01:30:10]} {[%emt 00:02:04]} cxd4 {[%clk 01:30:24]} {[%emt 00:01:34]} 9. exd4
{[%clk 01:30:32]} {[%emt 00:00:08]} Nc6 {[%clk 01:30:41]} {[%emt 00:00:13]} 10.
a3 {[%clk 01:29:00]} {[%emt 00:02:03]} Be7 {[%clk 01:30:37]} {[%emt 00:00:33]}
11. Bc4 {[%clk 01:25:48]} {[%emt 00:03:42]} Nxc3 {[%clk 01:27:11]} {[%emt
00:03:56]} 12. bxc3 {[%clk 01:26:13]} {[%emt 00:00:05]} b6 {[%clk 01:27:37]}
{[%emt 00:00:04]} 13. Qd3 {[%clk 01:16:27]} {[%emt 00:10:16]} Bb7 {[%clk
01:27:02]} {[%emt 00:01:06]} 14. Bb2 {[%clk 01:16:38]} {[%emt 00:00:19]} Rc8
{[%clk 01:27:10]} {[%emt 00:00:22]} 15. Rac1 {[%clk 01:16:09]} {[%emt
00:00:58]} Qd7 {[%clk 01:24:22]} {[%emt 00:03:19]} 16. Rfe1 {[%clk 01:08:15]}
{[%emt 00:08:24]} Ne5 {[%clk 01:22:31]} {[%emt 00:02:21]} 17. dxe5 {[%clk
01:08:14]} {[%emt 00:00:31]} Qc6 {[%clk 01:23:00]} {[%emt 00:00:01]} 18. Qg3
{[%clk 01:03:07]} {[%emt 00:05:37]} Qxc4 {[%clk 01:23:23]} {[%emt 00:00:08]} 19.
Nd4 {[%clk 01:01:27]} {[%emt 00:02:10]} Rfd8 {[%clk 01:22:56]} {[%emt
00:00:56]} 20. Rcd1 {[%clk 00:58:23]} {[%emt 00:03:34]} a5 {[%clk 01:08:46]}
{[%emt 00:14:41]} 21. h4 {[%clk 00:58:15]} {[%emt 00:00:37]} b5 {[%clk
01:08:25]} {[%emt 00:00:51]} 22. Re3 {[%clk 00:45:15]} {[%emt 00:13:30]} Qa2
{[%clk 01:03:36]} {[%emt 00:05:19]} 23. Bc1 {[%clk 00:37:46]} {[%emt 00:07:59]}
Bxa3 {[%clk 01:03:14]} {[%emt 00:00:52]} 24. Red3 {[%clk 00:28:54]} {[%emt
00:09:23]} Bf8 {[%clk 01:00:40]} {[%emt 00:03:04]} 25. Bg5 {[%clk 00:25:03]}
{[%emt 00:04:22]} Rd5 {[%clk 00:59:30]} {[%emt 00:01:39]} 26. h5 {[%clk
00:25:27]} {[%emt 00:00:06]} Qa4 {[%clk 00:56:13]} {[%emt 00:03:47]} 27. Qg4
{[%clk 00:14:21]} {[%emt 00:11:36]} Rxe5 {[%clk 00:54:29]} {[%emt 00:02:15]} 28.
Bf6 {[%clk 00:14:46]} {[%emt 00:00:05]} Re4 {[%clk 00:54:53]} {[%emt 00:00:05]}
29. f4 {[%clk 00:15:05]} {[%emt 00:00:11]} g6 {[%clk 00:50:39]} {[%emt
00:04:45]} 30. hxg6 {[%clk 00:15:30]} {[%emt 00:00:05]} hxg6 {[%clk 00:50:27]}
{[%emt 00:00:42]} 31. Qh4 {[%clk 00:12:00]} {[%emt 00:03:59]} Bg7 {[%clk
00:50:48]} {[%emt 00:00:08]} 32. Nb3 {[%clk 00:11:52]} {[%emt 00:00:38]} Bd5
{[%clk 00:45:34]} {[%emt 00:05:44]} 33. Rh3 {[%clk 00:12:01]} {[%emt 00:00:21]}
Kf8 {[%clk 00:46:03]} {[%emt 00:00:02]} 34. Qh8+ {[%clk 00:12:11]} {[%emt
00:00:20]} 1-0

[Event "9e Open International de Porticcio"]
[Site "Porticcio, France"]
[Date "2024.06.30"]
[Round "2.8"]
[White "Nayak Rajesh"]
[Black "Rakotomaharo, Fy Antenaina"]
[Result "0-1"]
[TimeControl "1h30+30s/move"]
[WhiteElo "2185"]
[BlackElo "2448"]

1. e4 {[%clk 01:30:55]} {[%emt 00:00:02]} e5 {[%clk 01:24:21]} {[%emt
00:06:40]} 2. Nf3 {[%clk 01:31:09]} {[%emt 00:00:16]} Nc6 {[%clk 01:24:48]}
{[%emt 00:00:03]} 3. Nc3 {[%clk 01:31:26]} {[%emt 00:00:13]} Nf6 {[%clk
01:24:01]} {[%emt 00:01:17]} 4. Bb5 {[%clk 01:31:47]} {[%emt 00:00:10]} Bd6
{[%clk 01:24:05]} {[%emt 00:00:26]} 5. O-O {[%clk 01:32:03]} {[%emt 00:00:13]}
O-O {[%clk 01:24:00]} {[%emt 00:00:35]} 6. d3 {[%clk 01:32:23]} {[%emt
00:00:09]} Re8 {[%clk 01:23:25]} {[%emt 00:01:06]} 7. Ne2 {[%clk 01:31:08]}
{[%emt 00:01:45]} Ne7 {[%clk 01:14:02]} {[%emt 00:09:52]} 8. Bc4 {[%clk
01:15:12]} {[%emt 00:16:26]} Ng6 {[%clk 01:09:42]} {[%emt 00:04:50]} 9. Ng5
{[%clk 01:12:09]} {[%emt 00:03:32]} Re7 {[%clk 01:05:32]} {[%emt 00:04:41]} 10.
Ng3 {[%clk 01:02:20]} {[%emt 00:10:18]} h6 {[%clk 01:05:35]} {[%emt 00:00:28]}
11. Nh3 {[%clk 01:02:35]} {[%emt 00:00:14]} Re8 {[%clk 01:01:48]} {[%emt
00:04:18]} 12. Nh5 {[%clk 00:46:07]} {[%emt 00:16:57]} c6 {[%clk 00:38:01]}
{[%emt 00:24:17]} 13. Bb3 {[%clk 00:35:58]} {[%emt 00:10:40]} Bc5 {[%clk
00:25:06]} {[%emt 00:13:25]} 14. Be3 {[%clk 00:25:51]} {[%emt 00:10:36]} d6
{[%clk 00:24:12]} {[%emt 00:01:25]} 15. Bxc5 {[%clk 00:19:56]} {[%emt
00:06:25]} dxc5 {[%clk 00:24:08]} {[%emt 00:00:34]} 16. f4 {[%clk 00:19:32]}
{[%emt 00:00:52]} Bxh3 {[%clk 00:10:45]} {[%emt 00:13:54]} 17. gxh3 {[%clk
00:20:00]} {[%emt 00:00:02]} exf4 {[%clk 00:09:41]} {[%emt 00:01:34]} 18. Nxf4
{[%clk 00:17:23]} {[%emt 00:03:06]} Ne5 {[%clk 00:07:31]} {[%emt 00:02:39]} 19.
Nh5 {[%clk 00:15:58]} {[%emt 00:01:55]} Nxh5 {[%clk 00:07:25]} {[%emt
00:00:38]} 20. Qxh5 {[%clk 00:16:25]} {[%emt 00:00:02]} Qg5+ {[%clk 00:04:59]}
{[%emt 00:02:56]} 21. Qxg5 {[%clk 00:15:11]} {[%emt 00:01:43]} hxg5 {[%clk
00:05:25]} {[%emt 00:00:04]} 22. Kg2 {[%clk 00:14:20]} {[%emt 00:01:21]} Kf8
{[%clk 00:01:03]} {[%emt 00:05:03]} 23. Rf5 {[%clk 00:11:46]} {[%emt 00:03:04]}
f6 {[%clk 00:01:28]} {[%emt 00:00:06]} 24. Raf1 {[%clk 00:12:09]} {[%emt
00:00:06]} Ke7 {[%clk 00:01:43]} {[%emt 00:00:16]} 25. Rxe5+ {[%clk 00:12:03]}
{[%emt 00:00:36]} fxe5 {[%clk 00:02:09]} {[%emt 00:00:04]} 26. Rf7+ {[%clk
00:12:27]} {[%emt 00:00:05]} Kd6 {[%clk 00:02:38]} {[%emt 00:00:02]} 27. Rxg7
{[%clk 00:12:51]} {[%emt 00:00:07]} Re7 {[%clk 00:02:52]} {[%emt 00:00:16]} 28.
Rg6+ {[%clk 00:12:24]} {[%emt 00:00:56]} Kc7 {[%clk 00:03:17]} {[%emt
00:00:04]} 29. Be6 {[%clk 00:12:32]} {[%emt 00:00:22]} Rd8 {[%clk 00:03:44]}
{[%emt 00:00:04]} 30. Bg4 {[%clk 00:11:53]} {[%emt 00:01:08]} c4 {[%clk
00:03:01]} {[%emt 00:01:15]} 31. Be2 {[%clk 00:11:33]} {[%emt 00:00:50]} Rf7
{[%clk 00:00:41]} {[%emt 00:02:50]} 32. Rxg5 {[%clk 00:11:53]} {[%emt
00:00:11]} Rdf8 {[%clk 00:01:06]} {[%emt 00:00:04]} 33. Bg4 {[%clk 00:10:23]}
{[%emt 00:01:59]} Rf2+ {[%clk 00:00:53]} {[%emt 00:00:44]} 34. Kg3 {[%clk
00:10:50]} {[%emt 00:00:02]} b5 {[%clk 00:00:45]} {[%emt 00:00:39]} 35. dxc4
{[%clk 00:07:22]} {[%emt 00:03:58]} bxc4 {[%clk 00:01:12]} {[%emt 00:00:03]} 36.
Rxe5 {[%clk 00:07:39]} {[%emt 00:00:13]} Rxc2 {[%clk 00:01:38]} {[%emt
00:00:04]} 37. Re7+ {[%clk 00:08:04]} {[%emt 00:00:05]} Kb6 {[%clk 00:00:43]}
{[%emt 00:01:26]} 38. Be6 {[%clk 00:08:23]} {[%emt 00:00:10]} Kc5 {[%clk
00:00:38]} {[%emt 00:00:36]} 39. Rb7 {[%clk 00:07:04]} {[%emt 00:01:48]} Rff2
{[%clk 00:00:41]} {[%emt 00:00:27]} 40. b4+ {[%clk 00:06:16]} {[%emt 00:01:18]}
Kd4 {[%clk 00:01:10]} {[%emt 00:00:01]} 41. Rd7+ {[%clk 00:05:57]} {[%emt
00:00:48]} Kxe4 {[%clk 00:01:06]} {[%emt 00:00:34]} 42. Bf7 {[%clk 00:05:23]}
{[%emt 00:01:03]} Rg2+ {[%clk 00:00:53]} {[%emt 00:00:43]} 43. Kh4 {[%clk
00:05:52]} {[%emt 00:00:02]} c3 {[%clk 00:00:37]} {[%emt 00:00:46]} 44. Bb3
{[%clk 00:04:00]} {[%emt 00:02:21]} Rcd2 {[%clk 00:00:37]} {[%emt 00:00:31]} 45.
Re7+ {[%clk 00:03:53]} {[%emt 00:00:37]} Kf5 {[%clk 00:00:35]} {[%emt
00:00:32]} 46. Rf7+ {[%clk 00:03:47]} {[%emt 00:00:36]} Kg6 {[%clk 00:00:48]}
{[%emt 00:00:17]} 47. Rf4 {[%clk 00:03:37]} {[%emt 00:00:40]} c2 {[%clk
00:01:11]} {[%emt 00:00:08]} 48. Rc4 {[%clk 00:01:55]} {[%emt 00:02:11]} c1=Q
{[%clk 00:01:20]} {[%emt 00:00:21]} 49. Rxc1 {[%clk 00:02:18]} {[%emt
00:00:07]} Rd4# {[%clk 00:01:47]} {[%emt 00:00:02]} 0-1

[Event "9e Open International de Porticcio"]
[Site "Porticcio, France"]
[Date "2024.06.30"]
[Round "2.10"]
[White "Bertuli, Roger"]
[Black "Guagnini, Francois-Joseph"]
[Result "1-0"]
[TimeControl "1h30+30s/move"]
[WhiteElo "1940"]
[BlackElo "1791"]

1. d4 {[%clk 01:30:56]} {[%emt 00:31:54]} Nf6 {[%clk 01:30:53]} {[%emt
00:00:14]} 2. c4 {[%clk 01:31:20]} {[%emt 00:00:07]} e6 {[%clk 01:31:17]}
{[%emt 00:00:06]} 3. g3 {[%clk 01:31:40]} {[%emt 00:00:10]} d5 {[%clk
01:31:09]} {[%emt 00:00:38]} 4. Bg2 {[%clk 01:32:01]} {[%emt 00:00:09]} Be7
{[%clk 01:30:17]} {[%emt 00:01:21]} 5. Nf3 {[%clk 01:32:21]} {[%emt 00:00:11]}
O-O {[%clk 01:30:31]} {[%emt 00:00:15]} 6. O-O {[%clk 01:32:44]} {[%emt
00:00:07]} b6 {[%clk 01:29:35]} {[%emt 00:01:26]} 7. cxd5 {[%clk 01:32:50]}
{[%emt 00:00:24]} exd5 {[%clk 01:29:57]} {[%emt 00:00:07]} 8. Bf4 {[%clk
01:32:01]} {[%emt 00:01:18]} Bf5 {[%clk 01:29:08]} {[%emt 00:01:21]} 9. Nc3
{[%clk 01:31:37]} {[%emt 00:00:54]} Nbd7 {[%clk 01:24:34]} {[%emt 00:05:03]} 10.
Rc1 {[%clk 01:29:19]} {[%emt 00:02:48]} c6 {[%clk 01:21:48]} {[%emt 00:03:16]}
11. Ne5 {[%clk 01:22:44]} {[%emt 00:07:05]} Nxe5 {[%clk 01:17:52]} {[%emt
00:04:26]} 12. dxe5 {[%clk 01:22:04]} {[%emt 00:01:10]} Nd7 {[%clk 01:17:53]}
{[%emt 00:00:30]} 13. h4 {[%clk 01:21:32]} {[%emt 00:01:03]} Rc8 {[%clk
01:17:56]} {[%emt 00:00:26]} 14. e4 {[%clk 01:21:26]} {[%emt 00:00:37]} dxe4
{[%clk 01:16:34]} {[%emt 00:01:52]} 15. Nxe4 {[%clk 01:21:16]} {[%emt
00:00:40]} Nc5 {[%clk 01:16:21]} {[%emt 00:00:43]} 16. Nd6 {[%clk 01:16:53]}
{[%emt 00:04:53]} Bxd6 {[%clk 01:16:01]} {[%emt 00:00:50]} 17. exd6 {[%clk
01:15:58]} {[%emt 00:01:25]} Qd7 {[%clk 01:15:34]} {[%emt 00:00:56]} 18. Qd4
{[%clk 01:03:12]} {[%emt 00:13:16]} Ne6 {[%clk 01:01:49]} {[%emt 00:14:16]} 19.
Qd2 {[%clk 01:03:20]} {[%emt 00:00:21]} Nxf4 {[%clk 01:01:49]} {[%emt
00:00:30]} 20. Qxf4 {[%clk 01:03:42]} {[%emt 00:00:09]} Be6 {[%clk 01:02:05]}
{[%emt 00:00:12]} 21. Rfe1 {[%clk 00:59:10]} {[%emt 00:05:03]} Rfe8 {[%clk
00:58:09]} {[%emt 00:04:26]} 22. b3 {[%clk 00:57:15]} {[%emt 00:02:25]} c5
{[%clk 00:52:59]} {[%emt 00:05:39]} 23. Red1 {[%clk 00:51:52]} {[%emt
00:05:53]} Bg4 {[%clk 00:38:57]} {[%emt 00:14:32]} 24. Rd2 {[%clk 00:48:05]}
{[%emt 00:04:18]} Re2 {[%clk 00:31:45]} {[%emt 00:07:41]} 25. Rxe2 {[%clk
00:43:07]} {[%emt 00:05:28]} Bxe2 {[%clk 00:31:52]} {[%emt 00:00:23]} 26. Re1
{[%clk 00:39:44]} {[%emt 00:03:53]} Re8 {[%clk 00:32:15]} {[%emt 00:00:07]} 27.
Qd2 {[%clk 00:33:46]} {[%emt 00:06:28]} Bb5 {[%clk 00:30:32]} {[%emt 00:02:13]}
28. Rxe8+ {[%clk 00:31:00]} {[%emt 00:03:16]} Qxe8 {[%clk 00:30:51]} {[%emt
00:00:11]} 29. Bh3 {[%clk 00:28:22]} {[%emt 00:03:08]} Bd7 {[%clk 00:30:12]}
{[%emt 00:01:09]} 30. Bxd7 {[%clk 00:28:23]} {[%emt 00:00:29]} Qxd7 {[%clk
00:30:38]} {[%emt 00:00:03]} 31. Qd5 {[%clk 00:28:09]} {[%emt 00:00:44]} g6
{[%clk 00:29:04]} {[%emt 00:02:04]} 32. Qe5 {[%clk 00:27:38]} {[%emt 00:01:01]}
Qd8 {[%clk 00:26:04]} {[%emt 00:03:29]} 33. Qe7 {[%clk 00:27:22]} {[%emt
00:00:48]} Qf8 {[%clk 00:26:27]} {[%emt 00:00:06]} 34. Qc7 {[%clk 00:26:53]}
{[%emt 00:01:00]} Qe8 {[%clk 00:26:48]} {[%emt 00:00:08]} 35. d7 {[%clk
00:26:15]} {[%emt 00:01:09]} Qe1+ {[%clk 00:27:07]} {[%emt 00:00:11]} 36. Kg2
{[%clk 00:26:29]} {[%emt 00:00:16]} Qe4+ {[%clk 00:26:23]} {[%emt 00:01:14]} 37.
Kh2 {[%clk 00:26:38]} {[%emt 00:00:20]} Qf3 {[%clk 00:26:33]} {[%emt 00:00:21]}
38. d8=Q+ {[%clk 00:26:56]} {[%emt 00:00:12]} Kg7 {[%clk 00:26:58]} {[%emt
00:00:05]} 39. Qe5+ {[%clk 00:26:27]} {[%emt 00:00:58]} 1-0

[Event "9e Open International de Porticcio"]
[Site "Porticcio, France"]
[Date "2024.06.30"]
[Round "3.2"]
[White "Bailet, Pierre"]
[Black "Anwesh, Upadhyaya"]
[Result "1-0"]
[TimeControl "1h30+30s/move"]
[WhiteElo "2491"]
[BlackElo "2354"]

1. e4 e5 2. Nf3 Nc6 3. Bb5 a6 4. Ba4 Nf6 5. O-O Be7 6. d3 b5 7. Bb3 O-O 8. a3
d6 9. Nc3 Bg4 10. Be3 Nd4 11. Bxd4 exd4 12. Nd5 c5 13. a4 Be6 14. Nxe7+ Qxe7 15.
Bxe6 Qxe6 16. b4 Nd7 17. bxc5 dxc5 18. Ng5 Qc6 19. f4 h6 20. Nf3 Rfe8 21. Nh4
bxa4 22. Nf5 Kh7 23. e5 f6 24. Qg4 g6 25. Nd6 Re7 26. Qh4 Rf8 27. Rae1 g5 28.
Qh5 fxe5 29. fxe5 Rxf1+ 30. Rxf1 Rg7 31. Ne8 Rg6 32. Rf7+ Kg8 33. Rxd7 a3 34.
Nf6+ Rxf6 35. Qe8+ Rf8 36. Rg7+ 1-0